[Event "45th FIDE Olympiad 2024"]
[Site "Budapest"]
[Date "2024.09.12"]
[Round "2.96"]
[White "Grigorov, Grigor"]
[Black "Veleshnja, Zino"]
[Result "1-0"]
[ECO "A13"]
[WhiteElo "2514"]
[BlackElo "2294"]
[Annotator "TA"]
[PlyCount "123"]
[EventDate "2024.09.05"]
[EventType "team-tourn"]
[EventCountry "HUN"]
[SourceTitle "playchess.com"]
[Source "ChessBase"]
[SourceQuality "1"]
[WhiteTeam "Bulgaria"]
[BlackTeam "Albania"]
[WhiteTeamCountry "BUL"]
[BlackTeamCountry "ALB"]
[TimeControl "40/5400+30:1800+30"]

{[%evp 14,123,28,11,18,18,25,21,45,14,21,10,33,26,22,12,64,35,39,36,60,22,31,12,45,9,41,35,39,37,40,40,39,40,84,72,194,192,188,188,281,275,273,266,258,246,279,25,82,85,89,65,72,45,34,25,28,28,29,33,27,27,23,11,12,0,4,0,53,21,56,84,75,77,112,112,135,156,150,107,114,103,108,111,189,161,207,195,553,327,390,332,552,533,575,495,566,543,631,640,1081,1072,991,886,10479,8499,29984,29985,29977,4133,2372,2117]} 1. Nf3 Nf6 2. g3 e6 3. Bg2 d5 4. c4 dxc4 5. Qa4+ c6 6. Qxc4 b5 7. Qc2 Bb7 8. Nc3 {A13: English Opening: 1...e6.} a6 9. a4 Nbd7 10. O-O b4 11. Nb1 Be7 12. a5 O-O 13. d3 c5 14. Nbd2 e5 $146 ({Black should play} 14... Ne8 $11) ({Predecessor:} 14... Bd6 15. Nc4 Bc7 16. e4 h6 17. h3 Rc8 18. Be3 Qe7 19. Nfd2 e5 20. f4 Nh5 {½-½ Sagar,S (2359)-Galinsky,T (2439) Golden Sands Europe op 2nd 2013 (7)}) 15. e4 Bc6 16. Nc4 Qc7 17. Bh3 Bb5 18. Be3 Rfd8 19. Nfd2 h5 20. Nb3 Ng4 21. Bd2 Qc6 22. f3 Ngf6 23. Bg5 Bxc4 24. Qxc4 Qb5 (24... Qd6 $16 {was called for.}) 25. Qxb5 $18 axb5 26. Rfc1 c4 (26... h4 $142 27. gxh4 (27. Bxh4 c4 $18) 27... Kf8 28. Bxd7 Nxd7) 27. dxc4 $18 Nc5 28. Nxc5 Bxc5+ {[#]} 29. Kh1 $1 Bd4 30. Rab1 $2 (30. cxb5 $18 Bxb2 31. a6 (31. Bxf6 gxf6 32. a6 Kg7 $11)) 30... Rxa5 (30... bxc4 $1 $11 {keeps the balance.} 31. Rxc4 Re8) 31. c5 $16 Ra7 32. c6 Rc7 $1 33. Bf1 Rb8 34. Bd2 Rb6 35. Bxb4 Rbxc6 36. Rxc6 Rxc6 37. Be1 (37. Bxb5 $2 {is the wrong capture.} Rb6 38. Bd2 Rxb5 $19) 37... Nh7 38. h4 g5 39. b4 gxh4 40. gxh4 Rg6 ({Black should try} 40... Rb6 $11) 41. Kh2 Bg1+ 42. Kh3 $1 Bd4 43. Bxb5 Rg1 44. Bd3 Rg6 45. b5 Nf8 46. Bg3 Rf6 47. Kg2 Ng6 48. Bc4 Kg7 {[#]} (48... Kf8 $16 {was worth a try.} 49. Bf2 Nf4+ 50. Kf1 Bxf2 51. Kxf2 Rb6) 49. Bf2 $1 $18 Nf4+ (49... Bb6 {was necessary.} 50. Bxb6 Rxb6) 50. Kf1 $18 Ne6 $2 (50... Bxf2 {is more resistant.} 51. Kxf2 Rb6 52. Rg1+ Kf8) 51. Be2 Nc5 52. b6 Nd7 $2 (52... Bxf2 {might work better.} 53. Kxf2 Nxe4+ 54. Kg2 Rg6+ 55. Kh2 Nc5) 53. b7 Nb8 54. Rb4 Bxf2 55. Kxf2 Rc6 56. Bc4 f5 57. exf5 Kf6 58. Bd5 Rc2+ 59. Kg3 Rd2 60. Rb6+ Ke7 61. Re6+ (61. f6+ $142 Kd7 62. f7 Ke7 63. Rf6 Kf8 64. Rd6 Rxd5 65. Rxd5 Kxf7 66. Rd8 (66. Rxe5 Kf6 $18)) 61... Kd7 $18 62. Be4 1-0

[Event "45th FIDE Olympiad 2024"]
[Site "Budapest"]
[Date "2024.09.12"]
[Round "2.97"]
[White "Kozak, Adam"]
[Black "Greet, Andrew N"]
[Result "1-0"]
[ECO "E36"]
[WhiteElo "2609"]
[BlackElo "2405"]
[Annotator "TA"]
[PlyCount "65"]
[EventDate "2024.09.05"]
[EventType "team-tourn"]
[EventCountry "HUN"]
[SourceTitle "playchess.com"]
[Source "ChessBase"]
[SourceQuality "1"]
[WhiteTeam "Hungary B"]
[BlackTeam "Scotland"]
[BlackTeamCountry "SCO"]
[TimeControl "40/5400+30:1800+30"]

{[%evp 15,65,18,15,19,18,16,12,-9,0,-30,-8,-28,-27,-21,0,0,0,0,0,0,0,0,0,0,25,18,13,18,57,52,79,31,44,13,22,12,19,13,42,49,46,37,114,109,177,174,845,840,828,824,870,846]} 1. d4 Nf6 2. c4 e6 3. Nc3 Bb4 4. Qc2 d5 5. a3 Bxc3+ 6. Qxc3 O-O 7. Nf3 dxc4 8. Qxc4 b6 9. Bg5 c5 10. dxc5 bxc5 11. e4 {[%cal Oe4e5] e5! would now be deadly. The position is equal.} h6 12. Be3 Ba6 13. Qc2 {Active counter play!} Bxf1 14. Kxf1 {[%cal Og2g3]} Nbd7 15. g3 Qb6 16. Kg2 Qb7 17. Nd2 {[%cal Of2f3,Bf3d2,Bd2c4,Bc4e5][%mdl 32]} Rab8 18. b3 {[%cal Of2f3]} Ng4 19. Rhe1 Rfc8 20. h3 Nxe3+ 21. Rxe3 Rc6 22. Nc4 Qc7 {Inhibits Na5.} 23. Qc3 (23. Rc3 $16) 23... Nb6 $14 24. Ne5 Rd6 25. Rc1 $36 {[%mdl 2048] Black is under pressure.} Rc8 $1 26. Qe1 f6 27. Nf3 Qb7 28. Rec3 c4 {[#]} 29. e5 $1 $16 {[%cal Be4e5,Be5f6,Bf6f7][%mdl 32]} ({Much worse is} 29. bxc4 $6 Rdc6 $11) 29... Rdc6 {[#]} (29... Rd3 $16 {was necessary.} 30. Rxd3 (30. bxc4 $2 {too greedy.} Qxf3+ 31. Kh2 f5 $19) 30... cxd3) 30. exf6 $1 $18 cxb3 $2 (30... gxf6 31. bxc4 Na4) 31. Rxc6 {White is clearly winning.} Rxc6 {[#]} 32. f7+ $1 {[%mdl 512]} Kf8 (32... Kxf7 33. Ne5+) 33. Qb4+ {Weighted Error Value: White=0.07 (flawless) /Black=0.18 (very precise) .  Mistake:       	White=1     	Black=3      Inaccurate:     	White=2     	Black=3      OK:         	White=11    	Black=9      Best:        	---       	Black=1      Strong:       	White=2     	Black=1} 1-0

[Event "45th FIDE Olympiad 2024"]
[Site "Budapest"]
[Date "2024.09.12"]
[Round "2.97"]
[White "Kim, Sanker"]
[Black "Giasi, Viresh"]
[Result "0-1"]
[ECO "B40"]
[WhiteElo "1564"]
[BlackElo "1998"]
[Annotator "NA"]
[PlyCount "82"]
[EventDate "2024.09.05"]
[EventType "team-tourn"]
[EventCountry "HUN"]
[SourceTitle "playchess.com"]
[Source "ChessBase"]
[SourceQuality "1"]
[WhiteTeam "Cambodia"]
[BlackTeam "Suriname"]
[WhiteTeamCountry "CMB"]
[BlackTeamCountry "SUR"]
[TimeControl "40/5400+30:1800+30"]

1. e4 c5 2. Nf3 e6 3. Be2 Nc6 4. O-O Nge7 5. Nc3 a6 6. d3 d5 7. exd5 Nxd5 8. Ne4 Be7 9. c4 Nf6 10. Nfg5 h6 11. Nxf6+ gxf6 12. Ne4 f5 13. Ng3 Bf6 14. Nh5 Bd4 15. Rb1 Qd6 16. Be3 Bd7 17. b4 cxb4 18. Bxd4 Qxd4 19. a3 a5 20. Bf3 Rb8 21. a4 Kd8 22. Ng3 Ne5 23. Kh1 Qxd3 24. Qxd3 Nxd3 25. Ra1 Ke7 26. Ra2 Rhc8 27. Be2 Nf4 28. Rc1 Bc6 29. Bf1 Rd8 30. Ne2 Nd3 31. Rb1 Nxf2+ 32. Kg1 Ne4 33. Rbb2 Rd1 34. Ng3 Nc3 35. Rd2 Rd8 36. Rxd8 Kxd8 37. Rb2 Bxa4 38. Kf2 Kc7 39. Be2 Bc6 40. Rc2 Rd4 41. Bf1 a4 0-1

[Event "45th FIDE Olympiad 2024"]
[Site "Budapest"]
[Date "2024.09.12"]
[Round "2.98"]
[White "Olson, Hamish"]
[Black "Banusz, Tamas"]
[Result "0-1"]
[ECO "D02"]
[WhiteElo "2384"]
[BlackElo "2605"]
[Annotator "TA"]
[PlyCount "72"]
[EventDate "2024.09.05"]
[EventType "team-tourn"]
[EventCountry "HUN"]
[SourceTitle "playchess.com"]
[Source "ChessBase"]
[SourceQuality "1"]
[WhiteTeam "Scotland"]
[BlackTeam "Hungary B"]
[WhiteTeamCountry "SCO"]
[TimeControl "40/5400+30:1800+30"]

{[%evp 10,72,17,17,16,7,0,0,14,9,17,-14,6,0,0,0,0,-18,-12,-21,0,0,-4,-16,37,35,21,17,27,28,50,43,60,67,63,19,0,0,11,0,20,-26,-22,-41,-31,-46,-50,-49,-56,-86,-29,-72,-60,-172,-180,-441,-424,-634,-627,-631,-629,-758,-745,-770,-769]} 1. Nf3 Nf6 2. g3 d5 3. Bg2 c6 4. O-O Bg4 5. d4 e6 6. Nbd2 Be7 7. Re1 O-O 8. e4 Bh5 {The position is equal.} 9. c3 h6 10. h4 Nbd7 11. e5 Ne8 12. Bh3 {[%cal Bg2h3,Bh3f1,Bf1e2][%mdl 32]} Nc7 13. Nf1 f5 14. N1h2 c5 15. Bf1 cxd4 16. cxd4 Rc8 (16... Nb6 $11) 17. Be2 $14 Na6 {[%cal Bc7a6,Ba6b8,Bb8c6,Bc6e7,Be7f5][%mdl 32]} 18. a3 {Prevents Nb4} Qb6 19. Be3 Rfe8 20. Qd2 {[%cal Oe3h6]} Bf8 21. Rec1 Nab8 22. g4 fxg4 (22... Bxg4 $6 23. Nxg4 fxg4 24. Ne1 $16) 23. Ne1 Nc6 24. b4 {[%cal Oe1g2]} a5 25. b5 (25. Nxg4 $142 Bg6 26. h5) 25... Ne7 $11 26. Ng2 (26. Bxg4 Bxg4 27. Nxg4 Qxb5 $17) 26... Nf5 27. Rxc8 Rxc8 28. Nxg4 Bg6 29. Nf4 Bh7 (29... Nxh4 30. Nxg6 Nxg6 31. Rc1 Rxc1+ 32. Qxc1) (29... Bf7 $17 {[%cal Oh6h5]} 30. h5 Qd8) 30. h5 Be7 31. Kh2 (31. Rc1 $15 Rxc1+ 32. Qxc1) 31... Bg5 $19 32. Ng6 $2 (32. Ng2 {is a better defense.} Nxe3 33. N2xe3) 32... Bxe3 {Black is clearly winning.} 33. fxe3 (33. Nxe3 $142 Bxg6 (33... Qxd4 34. Ne7+ Kf8 35. Qxd4 $14) 34. hxg6 Nxd4 (34... Qxd4 $2 35. Qxd4 Nxd4 36. Bh5 $19) 35. Kg2) 33... Bxg6 34. hxg6 Qd8 {[#] aiming for ...Qh4+.} 35. Kg2 h5 36. e4 dxe4 {Weighted Error Value: White=0.42/Black=0.08 (flawless) .  Mistake:       	White=4     	Black=2      Inaccurate:     	White=3     	---        OK:         	White=11    	Black=13     Best:        	White=1     	Black=2} 0-1

[Event "45th FIDE Olympiad 2024"]
[Site "Budapest"]
[Date "2024.09.12"]
[Round "2.98"]
[White "Yeung, Jason"]
[Black "El, Rozak"]
[Result "1-0"]
[ECO "B12"]
[WhiteElo "1993"]
[BlackElo "1514"]
[Annotator "NA"]
[PlyCount "63"]
[EventDate "2024.09.05"]
[EventType "team-tourn"]
[EventCountry "HUN"]
[SourceTitle "playchess.com"]
[Source "ChessBase"]
[SourceQuality "1"]
[WhiteTeam "Suriname"]
[BlackTeam "Cambodia"]
[WhiteTeamCountry "SUR"]
[BlackTeamCountry "CMB"]
[TimeControl "40/5400+30:1800+30"]

1. e4 c6 2. d4 d5 3. e5 Bf5 4. Nf3 e6 5. Be2 Bb4+ 6. c3 Be7 7. O-O Nd7 8. Be3 h6 9. Ne1 Bg5 10. f4 Be7 11. Nd2 Qb6 12. b4 g5 13. Bd3 Bxd3 14. Nxd3 gxf4 15. Bxf4 O-O-O 16. a4 a5 17. Rb1 axb4 18. Nxb4 Qa7 19. Nd3 h5 20. Kh1 Kc7 21. Qb3 Nh6 22. Bxh6 Rxh6 23. Rxf7 Re8 24. c4 b6 25. c5 bxc5 26. Nxc5 Rb8 27. Qxb8+ Qxb8 28. Na6+ Kc8 29. Nxb8 Nxb8 30. Rxe7 Nd7 31. a5 c5 32. a6 1-0

[Event "45th FIDE Olympiad 2024"]
[Site "Budapest"]
[Date "2024.09.12"]
[Round "2.99"]
[White "Antal, Gergely"]
[Black "Waldhausen Gordon, Frederick"]
[Result "1/2-1/2"]
[ECO "C50"]
[WhiteElo "2544"]
[BlackElo "2351"]
[Annotator "TA"]
[PlyCount "66"]
[EventDate "2024.09.05"]
[EventType "team-tourn"]
[EventCountry "HUN"]
[SourceTitle "playchess.com"]
[Source "ChessBase"]
[SourceQuality "1"]
[WhiteTeam "Hungary B"]
[BlackTeam "Scotland"]
[BlackTeamCountry "SCO"]
[TimeControl "40/5400+30:1800+30"]

{[%evp 9,66,11,21,13,17,8,17,9,9,6,8,23,20,14,19,14,22,10,19,0,6,0,0,0,21,22,20,22,23,3,9,3,10,12,23,18,25,19,20,19,30,18,21,12,18,0,0,0,0,0,0,0,0,0,0,0,0,0,14]} 1. e4 e5 2. Nf3 Nc6 3. Bc4 Nf6 4. d3 Bc5 5. a4 d6 6. a5 a6 7. c3 O-O 8. O-O h6 9. Be3 Bxe3 10. fxe3 Be6 11. Bxe6 fxe6 12. Nbd2 d5 13. h3 Qd6 14. Qc2 Rad8 15. d4 exd4 16. exd4 {[#] Threatens to win with e5.} Nxe4 17. Nxe4 dxe4 18. Qxe4 Qd5 19. Qxd5 exd5 20. Ne1 Rxf1+ 21. Kxf1 $11 {[%mdl 4096] Endgame. KRN-KRN} Ne7 22. Nd3 Nf5 23. Nc5 Nd6 24. Re1 Kf7 25. b3 b6 {[%cal Bb7b6,Bb6a5][%mdl 32] The position is equal.} 26. Nxa6 Nb5 27. Nb4 bxa5 28. Nc6 {[%csl LRa5,LRd8]} Rd6 29. Ne5+ Kg8 30. Rc1 Ra6 31. Ke2 a4 32. bxa4 Rxa4 33. Kd3 Ra2 {Not much happened in this game.   Weighted Error Value: White=0.05 (flawless) /Black=0.04 (flawless) .  OK:         	White=13    	Black=11} 1/2-1/2

[Event "45th FIDE Olympiad 2024"]
[Site "Budapest"]
[Date "2024.09.12"]
[Round "2.100"]
[White "Abdulla, Murad"]
[Black "Papp, Gabor"]
[Result "1/2-1/2"]
[ECO "B22"]
[WhiteElo "2312"]
[BlackElo "2550"]
[Annotator "TA"]
[PlyCount "64"]
[EventDate "2024.09.05"]
[EventType "team-tourn"]
[EventCountry "HUN"]
[SourceTitle "playchess.com"]
[Source "ChessBase"]
[SourceQuality "1"]
[WhiteTeam "Scotland"]
[BlackTeam "Hungary B"]
[WhiteTeamCountry "SCO"]
[TimeControl "40/5400+30:1800+30"]

{[%evp 13,64,13,2,10,0,-25,-14,-10,0,0,0,0,8,0,0,0,6,16,8,-14,0,-6,0,-26,0,0,0,-6,-5,-5,-2,-3,-3,-8,0,0,27,17,20,4,6,0,0,0,0,0,0,0,0,0,0,0,0]} 1. e4 c5 2. c3 d5 3. exd5 Qxd5 4. d4 Nf6 5. Nf3 e6 6. Na3 Nc6 7. Nb5 Qd8 8. dxc5 Bxc5 9. Be2 {[%cal Bf1e2,Be2d1,Bd1c2][%mdl 32]} Qxd1+ 10. Bxd1 {[#] Nc7+ is the strong threat.} Ke7 11. a4 a6 12. Na3 Rd8 13. Bc2 {Prevents Ne4.} b5 14. b4 Bd6 15. axb5 axb5 {[%cal Oc6b4]} 16. Bb2 Rb8 17. Ke2 Nd5 18. g3 {[%cal Oh1d1] Dodges Nf4+} h6 19. Bd3 Nc7 20. Nc2 Bb7 21. Rhd1 Be5 22. Ncd4 {aiming for Nxc6+.} Bxd4 (22... Bf6 {is interesting.} 23. Nxc6+ Bxc6 24. Ra7 Rd7) 23. Nxd4 Nxd4+ 24. cxd4 Ra8 {[#]} 25. d5 $1 Nxd5 {The position is equal.} 26. Bxg7 f6 27. Rdc1 {Prevents Nc3+.} Rxa1 28. Rxa1 Nc3+ 29. Ke3 {[%cal Oa1a7]} Nd5+ 30. Ke2 Nc3+ 31. Ke3 {[%cal Oa1a7]} Nd5+ 32. Ke2 Nc3+ {An interesting draw.   Weighted Error Value: White=0.07 (flawless) /Black=0.04 (flawless) .  Inaccurate:     	White=1     	Black=2      OK:         	White=6     	Black=11     Best:        	White=2     	---} 1/2-1/2

[Event "45th FIDE Olympiad 2024"]
[Site "Budapest"]
[Date "2024.09.12"]
[Round "2.101"]
[White "Tran, Thanh Tu"]
[Black "Demchenko, Anton"]
[Result "0-1"]
[ECO "E61"]
[WhiteElo "2387"]
[BlackElo "2597"]
[Annotator "TA"]
[PlyCount "84"]
[EventDate "2024.09.05"]
[EventType "team-tourn"]
[EventCountry "HUN"]
[SourceTitle "playchess.com"]
[Source "ChessBase"]
[SourceQuality "1"]
[WhiteTeam "Japan"]
[BlackTeam "Slovenia"]
[WhiteTeamCountry "JPN"]
[BlackTeamCountry "SLO"]
[TimeControl "40/5400+30:1800+30"]

{[%evp 19,84,0,5,0,0,0,2,-8,0,0,0,-10,0,0,0,-21,-7,-111,-119,-213,-211,-259,-250,-253,-249,-237,-239,-350,-341,-381,-270,-304,-287,-293,-289,-276,-251,-262,-236,-230,-237,-235,-197,-194,-194,-193,-151,-284,-190,-561,-553,-1330,-1183,-945,-869,-29972,-29973,-29974,-29975,-29985,-29976,-29981,-29982,-29991,-29992,-29992,-29990]} 1. Nf3 Nf6 2. d4 b6 3. Bf4 Bb7 4. h3 g6 5. e3 Bg7 6. Be2 O-O 7. O-O d6 8. c4 Nbd7 9. Nc3 Ne4 10. Nxe4 Bxe4 11. Nd2 Bb7 12. Bf3 Qc8 13. Qc2 {The position is equal.} e5 14. dxe5 dxe5 15. Bg3 a5 16. Bxb7 Qxb7 17. Qe4 c6 18. Qh4 (18. Rad1 $11) 18... f5 $17 {Black keeps a firm grip on the game.} 19. Nf3 (19. c5 $17) 19... Rae8 $19 20. Rab1 Nc5 21. b4 axb4 22. Rxb4 {[#]} h5 $1 {...Bf6 would now be deadly.} 23. Qg5 (23. Ng5 {was worth a try.} f4 24. exf4 exf4 25. Bxf4) 23... Qf7 24. Nxe5 (24. Rxb6 Ne4 25. Nxe5 (25. Qh4 $2 Bf6 $19) 25... Rxe5 $19 (25... Bxe5 $2 26. Qh6 $19) (25... Nxg5 $2 26. Nxf7 Rxf7 27. Rxc6 $19)) 24... Bxe5 25. Bxe5 Rxe5 26. Rxb6 Ne4 (26... Qxc4 $2 {perishes.} 27. Qxg6+ (27. Rxc6 Re6 $17) 27... Kh8 28. Rxc6 $18 (28. Qxh5+ Kg8 $18)) 27. Qf4 Re6 28. Rb8 Rxb8 29. Qxb8+ Re8 30. Qb4 f4 31. exf4 Qxf4 {aiming for ...Nd2.} 32. Qb6 Qf6 {And now ...Nd2 would win.} 33. a4 (33. Re1 $17) 33... c5 34. Qb5 (34. Qxf6 {is more resistant.} Nxf6 35. a5) 34... Rf8 {[%cal Oe4g3] White must now prevent ...Ng3!} 35. Qb7 {[#]} Ng3 {[%mdl 512]} 36. Qd5+ Kh7 37. Rb1 Qxf2+ {Black mates.} 38. Kh2 Qf4 39. Kg1 h4 40. Qb7+ Rf7 41. Qb6 Qe3+ 42. Kh2 Rf1 {Weighted Error Value: White=0.76/Black=0.12 (very precise) .  Mistake:       	White=5     	---        Inaccurate:     	White=1     	Black=1      OK:         	White=10    	Black=10     Best:        	---       	Black=1      Brilliant:      	---       	Black=1} 0-1

[Event "45th FIDE Olympiad 2024"]
[Site "Budapest"]
[Date "2024.09.12"]
[Round "2.102"]
[White "Subelj, Jan"]
[Black "Nanjo, Ryosuke"]
[Result "1-0"]
[ECO "B96"]
[WhiteElo "2498"]
[BlackElo "2372"]
[Annotator "TA"]
[PlyCount "63"]
[EventDate "2024.09.05"]
[EventType "team-tourn"]
[EventCountry "HUN"]
[SourceTitle "playchess.com"]
[Source "ChessBase"]
[SourceQuality "1"]
[WhiteTeam "Slovenia"]
[BlackTeam "Japan"]
[WhiteTeamCountry "SLO"]
[BlackTeamCountry "JPN"]
[TimeControl "40/5400+30:1800+30"]

{[%evp 16,63,7,8,15,10,1,12,37,20,69,58,81,76,75,61,85,-98,-89,-110,-75,-74,-71,-57,-81,-83,-41,-32,0,-9,0,-8,458,130,121,160,546,542,1039,1039,1018,1029,1018,1012,29986,29987,29989,29987,29987,29988]} 1. e4 c5 2. Nf3 d6 3. d4 cxd4 4. Nxd4 Nf6 5. Nc3 a6 6. Bg5 e6 7. f4 h6 8. Bh4 Qb6 9. a3 Be7 {[%cal Of6e4]} (9... Qxb2 $2 10. Na4 $18) 10. Bf2 {[%cal Od4e6] [#] Threatens to win with Nxe6!} Qc7 $1 (10... Qxb2 $2 11. Na4 $18) 11. Qf3 b5 {The position is equal.} 12. g4 {[%cal Bg2g4,Bg4f5][%mdl 32]} g6 (12... Nbd7 $11) 13. f5 {White is more active.} gxf5 14. gxf5 e5 15. Nb3 Bb7 16. a4 $2 {[#]} (16. Rg1 $16 {keeps the pressure on.}) 16... b4 $17 17. Nd5 Nxd5 18. exd5 Nd7 {[%cal Od7f6]} 19. O-O-O Rc8 20. Qe2 Nf6 21. Bg2 Qd7 22. Kb1 (22. Na5 Qxa4 23. Nxb7 Qa1+ (23... b3 $2 24. Nc5 $19) 24. Kd2 Qxb2 $11) 22... Qxa4 23. Nc5 dxc5 {[%mdl 8192]} (23... Rxc5 $11 24. Bxc5 Rg8 (24... dxc5 $2 25. Qxe5 Kd7 26. d6 $18)) 24. d6 $2 (24. Qxe5 $18 {and the rest is easy.} b3 25. cxb3) 24... Bxg2 25. Qxe5 $1 $40 {[%mdl 128] White is out for blood.} Qd7 (25... O-O $16 {is a better chance.} 26. Rhg1 (26. dxe7 Be4 $11) 26... Nd7 27. Qxe7 b3 28. cxb3 (28. Rxg2+ Kh7 $11) 28... Qxb3) 26. Rhe1 $18 Be4 27. Rxe4 Nxe4 28. Qxh8+ Bf8 29. Qe5+ Kd8 30. Bh4+ {White mates.} Ng5 31. Bxg5+ hxg5 32. Qf6+ {Weighted Error Value: White=0.45/Black=0.72.  Loses game:     	---       	Black=2      Missed win:     	White=1     	---        Mistake:       	White=1     	Black=1      Inaccurate:     	---       	Black=3      OK:         	White=9     	Black=4      Best:        	White=1     	Black=1      Strong:       	White=1     	Black=1} 1-0

[Event "45th FIDE Olympiad 2024"]
[Site "Budapest"]
[Date "2024.09.12"]
[Round "2.102"]
[White "Roberts, Gennard"]
[Black "Zebaze, Dongmo Loic Dylane"]
[Result "0-1"]
[ECO "C11"]
[WhiteElo "1582"]
[BlackElo "1914"]
[Annotator "NA"]
[PlyCount "102"]
[EventDate "2024.09.05"]
[EventType "team-tourn"]
[EventCountry "HUN"]
[SourceTitle "playchess.com"]
[Source "ChessBase"]
[SourceQuality "1"]
[WhiteTeam "Grenada"]
[BlackTeam "Cameroon"]
[WhiteTeamCountry "GRA"]
[BlackTeamCountry "CAM"]
[TimeControl "40/5400+30:1800+30"]

1. e4 e6 2. Nf3 d5 3. Nc3 Nf6 4. e5 Nfd7 5. d4 c5 6. dxc5 Nc6 7. Bf4 Bxc5 8. Bd3 a6 9. a3 b5 10. O-O Bb7 11. Qe2 Rc8 12. Nxd5 exd5 13. e6 Nf6 14. exf7+ Kf8 15. Bf5 Ra8 16. Rad1 h6 17. Nh4 g5 18. Ng6+ Kg7 19. Nxh8 Kxh8 20. Bg3 Qe7 21. Qxe7 Nxe7 22. Be5 Nxf5 23. Bxf6+ Kh7 24. Rfe1 Kg6 25. Re6 Kxf7 26. Rde1 Ne3 27. Be7 Ba7 28. Rxh6 Ng4 29. Bc5 Bxc5 30. Rh7+ Kg6 31. Rxb7 Bxf2+ 32. Kf1 Bxe1 33. Rb6+ Kf5 34. Kxe1 Nxh2 35. Rd6 Re8+ 36. Kd1 Re6 37. Rxd5+ Kf4 38. c3 Nf1 39. Rd4+ Kg3 40. a4 Ne3+ 41. Kd2 Nc4+ 42. Kc1 Re1+ 43. Kc2 Re2+ 44. Kc1 Rxb2 45. Rd5 g4 46. Rc5 Kxg2 47. Rc6 Ra2 48. Rxa6 Rxa4 49. Rg6 g3 50. Kc2 Ra2+ 51. Kd3 Ne5+ 0-1

[Event "45th FIDE Olympiad 2024"]
[Site "Budapest"]
[Date "2024.09.12"]
[Round "2.103"]
[White "Aoshima, Mirai"]
[Black "Sebenik, Matej"]
[Result "0-1"]
[ECO "D38"]
[WhiteElo "2385"]
[BlackElo "2515"]
[Annotator "TA"]
[PlyCount "54"]
[EventDate "2024.09.05"]
[EventType "team-tourn"]
[EventCountry "HUN"]
[SourceTitle "playchess.com"]
[Source "ChessBase"]
[SourceQuality "1"]
[WhiteTeam "Japan"]
[BlackTeam "Slovenia"]
[WhiteTeamCountry "JPN"]
[BlackTeamCountry "SLO"]
[TimeControl "40/5400+30:1800+30"]

{[%evp 11,54,28,28,9,10,11,14,2,7,2,10,14,16,0,6,2,15,-104,-111,-108,-100,-123,-117,-118,-60,-297,-296,-416,-426,-425,-441,-458,-465,-598,-581,-884,-855,-1029,-944,-1215,-1197,-29982,-1584,-29997,-29998]} 1. d4 Nf6 2. c4 e6 3. Nf3 d5 4. Nc3 Bb4 5. Qa4+ Nc6 6. e3 O-O 7. Qc2 Re8 8. Bd2 a6 9. a3 {The position is equal.} Bd6 10. c5 Bf8 11. Bd3 e5 12. dxe5 Nxe5 13. Nxe5 Rxe5 14. f4 (14. b4 $11) 14... Re8 $17 15. b4 d4 16. Ne2 dxe3 17. Bc3 {[#]} Qe7 ({Better is} 17... Ng4 $1 $17 {...Qh4+ is the strong threat.} 18. O-O Qh4) 18. O-O-O $2 {Loses the game.} (18. O-O $15) 18... a5 $19 19. Kb1 (19. b5 $142) 19... axb4 20. Bxb4 c6 21. Rhe1 g6 22. f5 Bg7 {aiming for ...Nd5.} 23. Nc3 {[#]} b6 $1 {[%mdl 512]} 24. fxg6 (24. cxb6 c5) 24... hxg6 25. Na4 Nd5 {[%cal Oa8a4] ...Rxa4! would now be deadly.} 26. Nxb6 Nxb6 (26... Qf6 $142 27. Qb3 Qa1+ 28. Kc2 Nxb4+ 29. Qxb4 Qa2+ (29... Qxa3 $2 30. Rb1 $19) 30. Kc1 Rxa3 31. Na4 Rxa4 32. Re2 Qxe2 33. Bxe2 Rxb4 34. Rf1 Bf5 35. Rxf5 gxf5 36. g3 Rb2 (36... Bb2+ {leads to mate.} 37. Kd1 Bd4 38. Bh5 Rb2 39. h4 e2+ 40. Bxe2 Rexe2 41. h5 Rf2 42. h6 Rf1#) 37. Kd1 Rd8+ 38. Kc1 Rxe2 39. g4 Rdd2 40. gxf5 Re1#) 27. cxb6 {[#]} Qxb4+ $3 {[%mdl 512] Weighted Error Value: White=1.43/Black=0.21 (precise) .  Loses game:     	White=1     	---        Mistake:       	White=2     	Black=1      Inaccurate:     	White=1     	---        OK:         	White=5     	Black=11     Best:        	---       	Black=1      Brilliant:      	---       	Black=1} 0-1